{"text_format":"3","workbook":"xlsx","n_sheets":3,"sheets":["Kjørelogg","Loggdata","Beregninger"],"not_rendered":{"charts":1,"defined_names":17},"read":"whole","date_system":"1900"}

{"sheet":"Kjørelogg","index":0,"n_rows":29,"n_cols":5,"rows_kept":29,"merged":[[0,1,1,4]]}
[null,"KJØRELOGG"]
{"$rows_empty":9}
[null,null,"REFUNDERBART",null,"TOTALT"]
[null,null,"KM",null,"REFUSJON"]
[]
[]
[]
[]
[null,null,"2012-05-01",null,"2012-05-10"]
[]
[null,null,"PERIODE",null,"PERIODE"]
[null,null,"START",null,"SLUTT"]
[]
[]
[]
[]
[]
[null,null,54,null,{"v":9800,"d":"9,800"}]
[]
[null,null,"REFUSJON",null,"FORRIGE DRIVSTOFF"]
[null,null,"kr/km",null,"KILOMETERTELLER"]

{"sheet":"Loggdata","index":1,"n_rows":19,"n_cols":15,"rows_kept":19,"merged":[[0,1,1,4]]}
[null,"KJØRELOGG"]
[{"$nulls":14}," "]
[]
[]
[null,"DATO","AKTIVITET","KILOM.TELLER 1","STED","KILOM.TELLER 2","BESTEMMELSESSTED","REFUNDER","LITER","KOSTNAD","KM","MPG","KR/KM","NOTATER"]
[null,"2012-05-01","Reise",{"v":10123,"d":"10,123"},"Chevron - Hovedg",{"v":10130,"d":"10,130"},null,null,15.56,{"v":64.11,"d":"kr 64.11"},{"$f":"kilometer","v":7},{"$f":"IF(OR(LEN(data[[#This Row],[KILOM.TELLER 2]]),data[[#This Row],[KILOM.TELLER 1]]=\"\"),\"\",IFERROR(data[[#This Row],[KM]]/data[[#This Row],[LITER]],\"\"))","v":""},{"$f":"IF(data[[#This Row],[MPG]]=\"\",\"\",100*data[[#This Row],[KOSTNAD]]/data[[#This Row],[KM]])","v":""}]
[null,"2012-05-01","Reise",{"v":10130,"d":"10,130"},"Kontor",{"v":10200,"d":"10,200"},"Bringebærgaten","Ja",null,"",{"$f":"kilometer","v":70},{"$f":"IF(OR(LEN(data[[#This Row],[KILOM.TELLER 2]]),data[[#This Row],[KILOM.TELLER 1]]=\"\"),\"\",IFERROR(data[[#This Row],[KM]]/data[[#This Row],[LITER]],\"\"))","v":""},{"$f":"IF(data[[#This Row],[MPG]]=\"\",\"\",100*data[[#This Row],[KOSTNAD]]/data[[#This Row],[KM]])","v":""}]
[null,"2012-05-01","Reise",{"v":10200,"d":"10,200"},"Vitro",{"v":10285,"d":"10,285"},"Kontor","Ja",null,"",{"$f":"kilometer","v":85},{"$f":"IF(OR(LEN(data[[#This Row],[KILOM.TELLER 2]]),data[[#This Row],[KILOM.TELLER 1]]=\"\"),\"\",IFERROR(data[[#This Row],[KM]]/data[[#This Row],[LITER]],\"\"))","v":""},{"$f":"IF(data[[#This Row],[MPG]]=\"\",\"\",100*data[[#This Row],[KOSTNAD]]/data[[#This Row],[KM]])","v":""}]
[null,"2012-05-02","Reise",{"v":10285,"d":"10,285"},"Kontor",{"v":10450,"d":"10,450"},"Nasena","Ja",null,"",{"$f":"kilometer","v":165},{"$f":"IF(OR(LEN(data[[#This Row],[KILOM.TELLER 2]]),data[[#This Row],[KILOM.TELLER 1]]=\"\"),\"\",IFERROR(data[[#This Row],[KM]]/data[[#This Row],[LITER]],\"\"))","v":""},{"$f":"IF(data[[#This Row],[MPG]]=\"\",\"\",100*data[[#This Row],[KOSTNAD]]/data[[#This Row],[KM]])","v":""}]
[null,"2012-05-02","Drivstoff",{"v":10450,"d":"10,450"},"Shell",{"$nulls":3},{"v":11.2,"d":"11.20"},{"v":55.42,"d":"kr 55.42"},{"$f":"kilometer","v":650},{"$f":"IF(OR(LEN(data[[#This Row],[KILOM.TELLER 2]]),data[[#This Row],[KILOM.TELLER 1]]=\"\"),\"\",IFERROR(data[[#This Row],[KM]]/data[[#This Row],[LITER]],\"\"))","v":{"v":58.03571428571429,"d":"58.0"}},{"$f":"IF(data[[#This Row],[MPG]]=\"\",\"\",100*data[[#This Row],[KOSTNAD]]/data[[#This Row],[KM]])","v":{"v":8.526153846153846,"d":"8.5"}}]
[null,"2012-05-02","Reise",{"v":10500,"d":"10,500"},"Nasena",{"v":10518,"d":"10,518"},"Kontor","Ja",null,"",{"$f":"kilometer","v":18},{"$f":"IF(OR(LEN(data[[#This Row],[KILOM.TELLER 2]]),data[[#This Row],[KILOM.TELLER 1]]=\"\"),\"\",IFERROR(data[[#This Row],[KM]]/data[[#This Row],[LITER]],\"\"))","v":""},{"$f":"IF(data[[#This Row],[MPG]]=\"\",\"\",100*data[[#This Row],[KOSTNAD]]/data[[#This Row],[KM]])","v":""}]
[null,"2012-05-03","Reise",{"v":10518,"d":"10,518"},"Kontor",{"v":10745,"d":"10,745"},"Kontor","Ja",null,"",{"$f":"kilometer","v":227},{"$f":"IF(OR(LEN(data[[#This Row],[KILOM.TELLER 2]]),data[[#This Row],[KILOM.TELLER 1]]=\"\"),\"\",IFERROR(data[[#This Row],[KM]]/data[[#This Row],[LITER]],\"\"))","v":""},{"$f":"IF(data[[#This Row],[MPG]]=\"\",\"\",100*data[[#This Row],[KOSTNAD]]/data[[#This Row],[KM]])","v":""}]
[null,"2012-05-04","Drivstoff",{"v":10745,"d":"10,745"},"Chevron - Hovedg",{"$nulls":3},{"v":16.6,"d":"16.60"},{"v":69.24,"d":"kr 69.24"},{"$f":"kilometer","v":295},{"$f":"IF(OR(LEN(data[[#This Row],[KILOM.TELLER 2]]),data[[#This Row],[KILOM.TELLER 1]]=\"\"),\"\",IFERROR(data[[#This Row],[KM]]/data[[#This Row],[LITER]],\"\"))","v":{"v":17.771084337349397,"d":"17.8"}},{"$f":"IF(data[[#This Row],[MPG]]=\"\",\"\",100*data[[#This Row],[KOSTNAD]]/data[[#This Row],[KM]])","v":{"v":23.471186440677965,"d":"23.5"}}]
[null,"2012-05-04","Reise",{"v":10745,"d":"10,745"},"Kontor",{"v":10800,"d":"10,800"},"Bergen","Ja",null,"",{"$f":"kilometer","v":55},{"$f":"IF(OR(LEN(data[[#This Row],[KILOM.TELLER 2]]),data[[#This Row],[KILOM.TELLER 1]]=\"\"),\"\",IFERROR(data[[#This Row],[KM]]/data[[#This Row],[LITER]],\"\"))","v":""},{"$f":"IF(data[[#This Row],[MPG]]=\"\",\"\",100*data[[#This Row],[KOSTNAD]]/data[[#This Row],[KM]])","v":""}]
[null,"2012-05-04","Reise",{"v":10800,"d":"10,800"},"Bergen",{"v":10875,"d":"10,875"},"Kontor","Ja",null,"",{"$f":"kilometer","v":75},{"$f":"IF(OR(LEN(data[[#This Row],[KILOM.TELLER 2]]),data[[#This Row],[KILOM.TELLER 1]]=\"\"),\"\",IFERROR(data[[#This Row],[KM]]/data[[#This Row],[LITER]],\"\"))","v":""},{"$f":"IF(data[[#This Row],[MPG]]=\"\",\"\",100*data[[#This Row],[KOSTNAD]]/data[[#This Row],[KM]])","v":""}]
[null,"2012-05-07","Reise",{"v":10875,"d":"10,875"},"Kontor",{"v":10921,"d":"10,921"},"Bringebærgaten","Ja",null,"",{"$f":"kilometer","v":46},{"$f":"IF(OR(LEN(data[[#This Row],[KILOM.TELLER 2]]),data[[#This Row],[KILOM.TELLER 1]]=\"\"),\"\",IFERROR(data[[#This Row],[KM]]/data[[#This Row],[LITER]],\"\"))","v":""},{"$f":"IF(data[[#This Row],[MPG]]=\"\",\"\",100*data[[#This Row],[KOSTNAD]]/data[[#This Row],[KM]])","v":""}]
[null,"2012-05-07","Reise",{"v":10921,"d":"10,921"},"Vitro",{"v":10969,"d":"10,969"},"Kontor","Ja",null,"",{"$f":"kilometer","v":48},{"$f":"IF(OR(LEN(data[[#This Row],[KILOM.TELLER 2]]),data[[#This Row],[KILOM.TELLER 1]]=\"\"),\"\",IFERROR(data[[#This Row],[KM]]/data[[#This Row],[LITER]],\"\"))","v":""},{"$f":"IF(data[[#This Row],[MPG]]=\"\",\"\",100*data[[#This Row],[KOSTNAD]]/data[[#This Row],[KM]])","v":""}]
[null,"2012-05-09","Reise",{"v":10969,"d":"10,969"},"Kontor",{"v":11000,"d":"11,000"},"Strandstedet","Ja",null,"",{"$f":"kilometer","v":31},{"$f":"IF(OR(LEN(data[[#This Row],[KILOM.TELLER 2]]),data[[#This Row],[KILOM.TELLER 1]]=\"\"),\"\",IFERROR(data[[#This Row],[KM]]/data[[#This Row],[LITER]],\"\"))","v":""},{"$f":"IF(data[[#This Row],[MPG]]=\"\",\"\",100*data[[#This Row],[KOSTNAD]]/data[[#This Row],[KM]])","v":""}]
[null,"2012-05-09","Reise",{"v":11000,"d":"11,000"},"Strandstedet",{"v":11100,"d":"11,100"},"Hjem","Nei",null,"",{"$f":"kilometer","v":100},{"$f":"IF(OR(LEN(data[[#This Row],[KILOM.TELLER 2]]),data[[#This Row],[KILOM.TELLER 1]]=\"\"),\"\",IFERROR(data[[#This Row],[KM]]/data[[#This Row],[LITER]],\"\"))","v":""},{"$f":"IF(data[[#This Row],[MPG]]=\"\",\"\",100*data[[#This Row],[KOSTNAD]]/data[[#This Row],[KM]])","v":""}]

{"sheet":"Beregninger","index":2,"n_rows":69,"n_cols":13,"rows_kept":69,"hidden":true}
["*** Dette arket må være skjult ***"]
[]
[]
[]
[]
[{"$nulls":8},{"$f":"OFFSET(I9,,andreAkse=\"Drivstoffkostnad\")","v":"kr/km"}]
[{"$nulls":12},2]
[{"$nulls":7},"Reise","Drivstoff","Drivstoff",null,"Andre akse:  ",{"$f":"REPT(\"MPG\",M7=1)&REPT(\"Drivstoffkostnad\",M7=2)","v":"Drivstoffkostnad"}]
[{"$nulls":7},"Km kjørt","MPG","kr/km"]
[null,null,"Kjøregodtgjørelse  ",{"$f":"SUMIFS(data[KM],data[REFUNDER],\"Ja\",data[DATO],\">=\"&periodeStart,data[DATO],\"<=\"&periodeSlutt)","v":820},null,1,{"$f":"periodeStart","v":"2012-05-01"},{"$f":"SUMIFS(data[KM],data[DATO],G10,data[AKTIVITET],$H$8)","v":162},{"$f":"IFERROR(AVERAGEIFS(data[MPG],data[DATO],G10,data[AKTIVITET],$I$8),NA())","v":{"$error":"#N/A"}},{"$f":"IFERROR(AVERAGEIFS(data[KR/KM],data[DATO],G10,data[AKTIVITET],$J$8),NA())","v":{"$error":"#N/A"}}]
[null,null,"Refusjon totalt:  ",{"$f":"D10*GodtgjørelsePerKm/100","v":{"v":442.8,"d":"kr 442.80"}},null,2,{"$f":"G10+1","v":"2012-05-02"},{"$f":"SUMIFS(data[KM],data[DATO],G11,data[AKTIVITET],$H$8)","v":183},{"$f":"IFERROR(AVERAGEIFS(data[MPG],data[DATO],G11,data[AKTIVITET],$I$8),NA())","v":{"v":58.03571428571429,"d":"58.0"}},{"$f":"IFERROR(AVERAGEIFS(data[KR/KM],data[DATO],G11,data[AKTIVITET],$J$8),NA())","v":{"v":8.526153846153846,"d":"8.5"}}]
[{"$nulls":5},3,"2012-05-03",{"$f":"SUMIFS(data[KM],data[DATO],G12,data[AKTIVITET],$H$8)","v":227},{"$f":"IFERROR(AVERAGEIFS(data[MPG],data[DATO],G12,data[AKTIVITET],$I$8),NA())","v":{"$error":"#N/A"}},{"$f":"IFERROR(AVERAGEIFS(data[KR/KM],data[DATO],G12,data[AKTIVITET],$J$8),NA())","v":{"$error":"#N/A"}}]
[{"$nulls":5},4,"2012-05-04",{"$f":"SUMIFS(data[KM],data[DATO],G13,data[AKTIVITET],$H$8)","v":130},{"$f":"IFERROR(AVERAGEIFS(data[MPG],data[DATO],G13,data[AKTIVITET],$I$8),NA())","v":{"v":17.771084337349397,"d":"17.8"}},{"$f":"IFERROR(AVERAGEIFS(data[KR/KM],data[DATO],G13,data[AKTIVITET],$J$8),NA())","v":{"v":23.471186440677965,"d":"23.5"}}]
[{"$nulls":5},5,"2012-05-05",{"$f":"SUMIFS(data[KM],data[DATO],G14,data[AKTIVITET],$H$8)","v":0},{"$f":"IFERROR(AVERAGEIFS(data[MPG],data[DATO],G14,data[AKTIVITET],$I$8),NA())","v":{"$error":"#N/A"}},{"$f":"IFERROR(AVERAGEIFS(data[KR/KM],data[DATO],G14,data[AKTIVITET],$J$8),NA())","v":{"$error":"#N/A"}}]
[{"$nulls":5},6,"2012-05-06",{"$f":"SUMIFS(data[KM],data[DATO],G15,data[AKTIVITET],$H$8)","v":0},{"$f":"IFERROR(AVERAGEIFS(data[MPG],data[DATO],G15,data[AKTIVITET],$I$8),NA())","v":{"$error":"#N/A"}},{"$f":"IFERROR(AVERAGEIFS(data[KR/KM],data[DATO],G15,data[AKTIVITET],$J$8),NA())","v":{"$error":"#N/A"}}]
[{"$nulls":5},7,"2012-05-07",{"$f":"SUMIFS(data[KM],data[DATO],G16,data[AKTIVITET],$H$8)","v":94},{"$f":"IFERROR(AVERAGEIFS(data[MPG],data[DATO],G16,data[AKTIVITET],$I$8),NA())","v":{"$error":"#N/A"}},{"$f":"IFERROR(AVERAGEIFS(data[KR/KM],data[DATO],G16,data[AKTIVITET],$J$8),NA())","v":{"$error":"#N/A"}}]
[{"$nulls":5},8,"2012-05-08",{"$f":"SUMIFS(data[KM],data[DATO],G17,data[AKTIVITET],$H$8)","v":0},{"$f":"IFERROR(AVERAGEIFS(data[MPG],data[DATO],G17,data[AKTIVITET],$I$8),NA())","v":{"$error":"#N/A"}},{"$f":"IFERROR(AVERAGEIFS(data[KR/KM],data[DATO],G17,data[AKTIVITET],$J$8),NA())","v":{"$error":"#N/A"}}]
[{"$nulls":5},9,"2012-05-09",{"$f":"SUMIFS(data[KM],data[DATO],G18,data[AKTIVITET],$H$8)","v":131},{"$f":"IFERROR(AVERAGEIFS(data[MPG],data[DATO],G18,data[AKTIVITET],$I$8),NA())","v":{"$error":"#N/A"}},{"$f":"IFERROR(AVERAGEIFS(data[KR/KM],data[DATO],G18,data[AKTIVITET],$J$8),NA())","v":{"$error":"#N/A"}}]
[{"$nulls":5},10,"2012-05-10",{"$f":"SUMIFS(data[KM],data[DATO],G19,data[AKTIVITET],$H$8)","v":0},{"$f":"IFERROR(AVERAGEIFS(data[MPG],data[DATO],G19,data[AKTIVITET],$I$8),NA())","v":{"$error":"#N/A"}},{"$f":"IFERROR(AVERAGEIFS(data[KR/KM],data[DATO],G19,data[AKTIVITET],$J$8),NA())","v":{"$error":"#N/A"}}]
[{"$nulls":5},11,"2012-05-11",{"$f":"SUMIFS(data[KM],data[DATO],G20,data[AKTIVITET],$H$8)","v":0},{"$f":"IFERROR(AVERAGEIFS(data[MPG],data[DATO],G20,data[AKTIVITET],$I$8),NA())","v":{"$error":"#N/A"}},{"$f":"IFERROR(AVERAGEIFS(data[KR/KM],data[DATO],G20,data[AKTIVITET],$J$8),NA())","v":{"$error":"#N/A"}}]
[{"$nulls":5},12,"2012-05-12",{"$f":"SUMIFS(data[KM],data[DATO],G21,data[AKTIVITET],$H$8)","v":0},{"$f":"IFERROR(AVERAGEIFS(data[MPG],data[DATO],G21,data[AKTIVITET],$I$8),NA())","v":{"$error":"#N/A"}},{"$f":"IFERROR(AVERAGEIFS(data[KR/KM],data[DATO],G21,data[AKTIVITET],$J$8),NA())","v":{"$error":"#N/A"}}]
[{"$nulls":5},13,"2012-05-13",{"$f":"SUMIFS(data[KM],data[DATO],G22,data[AKTIVITET],$H$8)","v":0},{"$f":"IFERROR(AVERAGEIFS(data[MPG],data[DATO],G22,data[AKTIVITET],$I$8),NA())","v":{"$error":"#N/A"}},{"$f":"IFERROR(AVERAGEIFS(data[KR/KM],data[DATO],G22,data[AKTIVITET],$J$8),NA())","v":{"$error":"#N/A"}}]
[{"$nulls":5},14,"2012-05-14",{"$f":"SUMIFS(data[KM],data[DATO],G23,data[AKTIVITET],$H$8)","v":0},{"$f":"IFERROR(AVERAGEIFS(data[MPG],data[DATO],G23,data[AKTIVITET],$I$8),NA())","v":{"$error":"#N/A"}},{"$f":"IFERROR(AVERAGEIFS(data[KR/KM],data[DATO],G23,data[AKTIVITET],$J$8),NA())","v":{"$error":"#N/A"}}]
[{"$nulls":5},15,"2012-05-15",{"$f":"SUMIFS(data[KM],data[DATO],G24,data[AKTIVITET],$H$8)","v":0},{"$f":"IFERROR(AVERAGEIFS(data[MPG],data[DATO],G24,data[AKTIVITET],$I$8),NA())","v":{"$error":"#N/A"}},{"$f":"IFERROR(AVERAGEIFS(data[KR/KM],data[DATO],G24,data[AKTIVITET],$J$8),NA())","v":{"$error":"#N/A"}}]
[{"$nulls":5},16,"2012-05-16",{"$f":"SUMIFS(data[KM],data[DATO],G25,data[AKTIVITET],$H$8)","v":0},{"$f":"IFERROR(AVERAGEIFS(data[MPG],data[DATO],G25,data[AKTIVITET],$I$8),NA())","v":{"$error":"#N/A"}},{"$f":"IFERROR(AVERAGEIFS(data[KR/KM],data[DATO],G25,data[AKTIVITET],$J$8),NA())","v":{"$error":"#N/A"}}]
[{"$nulls":5},17,"2012-05-17",{"$f":"SUMIFS(data[KM],data[DATO],G26,data[AKTIVITET],$H$8)","v":0},{"$f":"IFERROR(AVERAGEIFS(data[MPG],data[DATO],G26,data[AKTIVITET],$I$8),NA())","v":{"$error":"#N/A"}},{"$f":"IFERROR(AVERAGEIFS(data[KR/KM],data[DATO],G26,data[AKTIVITET],$J$8),NA())","v":{"$error":"#N/A"}}]
[{"$nulls":5},18,"2012-05-18",{"$f":"SUMIFS(data[KM],data[DATO],G27,data[AKTIVITET],$H$8)","v":0},{"$f":"IFERROR(AVERAGEIFS(data[MPG],data[DATO],G27,data[AKTIVITET],$I$8),NA())","v":{"$error":"#N/A"}},{"$f":"IFERROR(AVERAGEIFS(data[KR/KM],data[DATO],G27,data[AKTIVITET],$J$8),NA())","v":{"$error":"#N/A"}}]
[{"$nulls":5},19,"2012-05-19",{"$f":"SUMIFS(data[KM],data[DATO],G28,data[AKTIVITET],$H$8)","v":0},{"$f":"IFERROR(AVERAGEIFS(data[MPG],data[DATO],G28,data[AKTIVITET],$I$8),NA())","v":{"$error":"#N/A"}},{"$f":"IFERROR(AVERAGEIFS(data[KR/KM],data[DATO],G28,data[AKTIVITET],$J$8),NA())","v":{"$error":"#N/A"}}]
[{"$nulls":5},20,"2012-05-20",{"$f":"SUMIFS(data[KM],data[DATO],G29,data[AKTIVITET],$H$8)","v":0},{"$f":"IFERROR(AVERAGEIFS(data[MPG],data[DATO],G29,data[AKTIVITET],$I$8),NA())","v":{"$error":"#N/A"}},{"$f":"IFERROR(AVERAGEIFS(data[KR/KM],data[DATO],G29,data[AKTIVITET],$J$8),NA())","v":{"$error":"#N/A"}}]
[{"$nulls":5},21,"2012-05-21",{"$f":"SUMIFS(data[KM],data[DATO],G30,data[AKTIVITET],$H$8)","v":0},{"$f":"IFERROR(AVERAGEIFS(data[MPG],data[DATO],G30,data[AKTIVITET],$I$8),NA())","v":{"$error":"#N/A"}},{"$f":"IFERROR(AVERAGEIFS(data[KR/KM],data[DATO],G30,data[AKTIVITET],$J$8),NA())","v":{"$error":"#N/A"}}]
[{"$nulls":5},22,"2012-05-22",{"$f":"SUMIFS(data[KM],data[DATO],G31,data[AKTIVITET],$H$8)","v":0},{"$f":"IFERROR(AVERAGEIFS(data[MPG],data[DATO],G31,data[AKTIVITET],$I$8),NA())","v":{"$error":"#N/A"}},{"$f":"IFERROR(AVERAGEIFS(data[KR/KM],data[DATO],G31,data[AKTIVITET],$J$8),NA())","v":{"$error":"#N/A"}}]
[{"$nulls":5},23,"2012-05-23",{"$f":"SUMIFS(data[KM],data[DATO],G32,data[AKTIVITET],$H$8)","v":0},{"$f":"IFERROR(AVERAGEIFS(data[MPG],data[DATO],G32,data[AKTIVITET],$I$8),NA())","v":{"$error":"#N/A"}},{"$f":"IFERROR(AVERAGEIFS(data[KR/KM],data[DATO],G32,data[AKTIVITET],$J$8),NA())","v":{"$error":"#N/A"}}]
[{"$nulls":5},24,"2012-05-24",{"$f":"SUMIFS(data[KM],data[DATO],G33,data[AKTIVITET],$H$8)","v":0},{"$f":"IFERROR(AVERAGEIFS(data[MPG],data[DATO],G33,data[AKTIVITET],$I$8),NA())","v":{"$error":"#N/A"}},{"$f":"IFERROR(AVERAGEIFS(data[KR/KM],data[DATO],G33,data[AKTIVITET],$J$8),NA())","v":{"$error":"#N/A"}}]
[{"$nulls":5},25,"2012-05-25",{"$f":"SUMIFS(data[KM],data[DATO],G34,data[AKTIVITET],$H$8)","v":0},{"$f":"IFERROR(AVERAGEIFS(data[MPG],data[DATO],G34,data[AKTIVITET],$I$8),NA())","v":{"$error":"#N/A"}},{"$f":"IFERROR(AVERAGEIFS(data[KR/KM],data[DATO],G34,data[AKTIVITET],$J$8),NA())","v":{"$error":"#N/A"}}]
[{"$nulls":5},26,"2012-05-26",{"$f":"SUMIFS(data[KM],data[DATO],G35,data[AKTIVITET],$H$8)","v":0},{"$f":"IFERROR(AVERAGEIFS(data[MPG],data[DATO],G35,data[AKTIVITET],$I$8),NA())","v":{"$error":"#N/A"}},{"$f":"IFERROR(AVERAGEIFS(data[KR/KM],data[DATO],G35,data[AKTIVITET],$J$8),NA())","v":{"$error":"#N/A"}}]
[{"$nulls":5},27,"2012-05-27",{"$f":"SUMIFS(data[KM],data[DATO],G36,data[AKTIVITET],$H$8)","v":0},{"$f":"IFERROR(AVERAGEIFS(data[MPG],data[DATO],G36,data[AKTIVITET],$I$8),NA())","v":{"$error":"#N/A"}},{"$f":"IFERROR(AVERAGEIFS(data[KR/KM],data[DATO],G36,data[AKTIVITET],$J$8),NA())","v":{"$error":"#N/A"}}]
[{"$nulls":5},28,"2012-05-28",{"$f":"SUMIFS(data[KM],data[DATO],G37,data[AKTIVITET],$H$8)","v":0},{"$f":"IFERROR(AVERAGEIFS(data[MPG],data[DATO],G37,data[AKTIVITET],$I$8),NA())","v":{"$error":"#N/A"}},{"$f":"IFERROR(AVERAGEIFS(data[KR/KM],data[DATO],G37,data[AKTIVITET],$J$8),NA())","v":{"$error":"#N/A"}}]
[{"$nulls":5},29,"2012-05-29",{"$f":"SUMIFS(data[KM],data[DATO],G38,data[AKTIVITET],$H$8)","v":0},{"$f":"IFERROR(AVERAGEIFS(data[MPG],data[DATO],G38,data[AKTIVITET],$I$8),NA())","v":{"$error":"#N/A"}},{"$f":"IFERROR(AVERAGEIFS(data[KR/KM],data[DATO],G38,data[AKTIVITET],$J$8),NA())","v":{"$error":"#N/A"}}]
[{"$nulls":5},30,"2012-05-30",{"$f":"SUMIFS(data[KM],data[DATO],G39,data[AKTIVITET],$H$8)","v":0},{"$f":"IFERROR(AVERAGEIFS(data[MPG],data[DATO],G39,data[AKTIVITET],$I$8),NA())","v":{"$error":"#N/A"}},{"$f":"IFERROR(AVERAGEIFS(data[KR/KM],data[DATO],G39,data[AKTIVITET],$J$8),NA())","v":{"$error":"#N/A"}}]
[{"$nulls":5},31,"2012-05-31",{"$f":"SUMIFS(data[KM],data[DATO],G40,data[AKTIVITET],$H$8)","v":0},{"$f":"IFERROR(AVERAGEIFS(data[MPG],data[DATO],G40,data[AKTIVITET],$I$8),NA())","v":{"$error":"#N/A"}},{"$f":"IFERROR(AVERAGEIFS(data[KR/KM],data[DATO],G40,data[AKTIVITET],$J$8),NA())","v":{"$error":"#N/A"}}]
[{"$nulls":5},32,"2012-06-01",{"$f":"SUMIFS(data[KM],data[DATO],G41,data[AKTIVITET],$H$8)","v":0},{"$f":"IFERROR(AVERAGEIFS(data[MPG],data[DATO],G41,data[AKTIVITET],$I$8),NA())","v":{"$error":"#N/A"}},{"$f":"IFERROR(AVERAGEIFS(data[KR/KM],data[DATO],G41,data[AKTIVITET],$J$8),NA())","v":{"$error":"#N/A"}}]
[{"$nulls":5},33,"2012-06-02",{"$f":"SUMIFS(data[KM],data[DATO],G42,data[AKTIVITET],$H$8)","v":0},{"$f":"IFERROR(AVERAGEIFS(data[MPG],data[DATO],G42,data[AKTIVITET],$I$8),NA())","v":{"$error":"#N/A"}},{"$f":"IFERROR(AVERAGEIFS(data[KR/KM],data[DATO],G42,data[AKTIVITET],$J$8),NA())","v":{"$error":"#N/A"}}]
[{"$nulls":5},34,{"$f":"G42+1","v":"2012-06-03"},{"$f":"SUMIFS(data[KM],data[DATO],G43,data[AKTIVITET],$H$8)","v":0},{"$f":"IFERROR(AVERAGEIFS(data[MPG],data[DATO],G43,data[AKTIVITET],$I$8),NA())","v":{"$error":"#N/A"}},{"$f":"IFERROR(AVERAGEIFS(data[KR/KM],data[DATO],G43,data[AKTIVITET],$J$8),NA())","v":{"$error":"#N/A"}}]
[{"$nulls":5},35,"2012-06-04",{"$f":"SUMIFS(data[KM],data[DATO],G44,data[AKTIVITET],$H$8)","v":0},{"$f":"IFERROR(AVERAGEIFS(data[MPG],data[DATO],G44,data[AKTIVITET],$I$8),NA())","v":{"$error":"#N/A"}},{"$f":"IFERROR(AVERAGEIFS(data[KR/KM],data[DATO],G44,data[AKTIVITET],$J$8),NA())","v":{"$error":"#N/A"}}]
[{"$nulls":5},36,"2012-06-05",{"$f":"SUMIFS(data[KM],data[DATO],G45,data[AKTIVITET],$H$8)","v":0},{"$f":"IFERROR(AVERAGEIFS(data[MPG],data[DATO],G45,data[AKTIVITET],$I$8),NA())","v":{"$error":"#N/A"}},{"$f":"IFERROR(AVERAGEIFS(data[KR/KM],data[DATO],G45,data[AKTIVITET],$J$8),NA())","v":{"$error":"#N/A"}}]
[{"$nulls":5},37,"2012-06-06",{"$f":"SUMIFS(data[KM],data[DATO],G46,data[AKTIVITET],$H$8)","v":0},{"$f":"IFERROR(AVERAGEIFS(data[MPG],data[DATO],G46,data[AKTIVITET],$I$8),NA())","v":{"$error":"#N/A"}},{"$f":"IFERROR(AVERAGEIFS(data[KR/KM],data[DATO],G46,data[AKTIVITET],$J$8),NA())","v":{"$error":"#N/A"}}]
[{"$nulls":5},38,"2012-06-07",{"$f":"SUMIFS(data[KM],data[DATO],G47,data[AKTIVITET],$H$8)","v":0},{"$f":"IFERROR(AVERAGEIFS(data[MPG],data[DATO],G47,data[AKTIVITET],$I$8),NA())","v":{"$error":"#N/A"}},{"$f":"IFERROR(AVERAGEIFS(data[KR/KM],data[DATO],G47,data[AKTIVITET],$J$8),NA())","v":{"$error":"#N/A"}}]
[{"$nulls":5},39,"2012-06-08",{"$f":"SUMIFS(data[KM],data[DATO],G48,data[AKTIVITET],$H$8)","v":0},{"$f":"IFERROR(AVERAGEIFS(data[MPG],data[DATO],G48,data[AKTIVITET],$I$8),NA())","v":{"$error":"#N/A"}},{"$f":"IFERROR(AVERAGEIFS(data[KR/KM],data[DATO],G48,data[AKTIVITET],$J$8),NA())","v":{"$error":"#N/A"}}]
[{"$nulls":5},40,"2012-06-09",{"$f":"SUMIFS(data[KM],data[DATO],G49,data[AKTIVITET],$H$8)","v":0},{"$f":"IFERROR(AVERAGEIFS(data[MPG],data[DATO],G49,data[AKTIVITET],$I$8),NA())","v":{"$error":"#N/A"}},{"$f":"IFERROR(AVERAGEIFS(data[KR/KM],data[DATO],G49,data[AKTIVITET],$J$8),NA())","v":{"$error":"#N/A"}}]
[{"$nulls":5},41,"2012-06-10",{"$f":"SUMIFS(data[KM],data[DATO],G50,data[AKTIVITET],$H$8)","v":0},{"$f":"IFERROR(AVERAGEIFS(data[MPG],data[DATO],G50,data[AKTIVITET],$I$8),NA())","v":{"$error":"#N/A"}},{"$f":"IFERROR(AVERAGEIFS(data[KR/KM],data[DATO],G50,data[AKTIVITET],$J$8),NA())","v":{"$error":"#N/A"}}]
[{"$nulls":5},42,"2012-06-11",{"$f":"SUMIFS(data[KM],data[DATO],G51,data[AKTIVITET],$H$8)","v":0},{"$f":"IFERROR(AVERAGEIFS(data[MPG],data[DATO],G51,data[AKTIVITET],$I$8),NA())","v":{"$error":"#N/A"}},{"$f":"IFERROR(AVERAGEIFS(data[KR/KM],data[DATO],G51,data[AKTIVITET],$J$8),NA())","v":{"$error":"#N/A"}}]
[{"$nulls":5},43,"2012-06-12",{"$f":"SUMIFS(data[KM],data[DATO],G52,data[AKTIVITET],$H$8)","v":0},{"$f":"IFERROR(AVERAGEIFS(data[MPG],data[DATO],G52,data[AKTIVITET],$I$8),NA())","v":{"$error":"#N/A"}},{"$f":"IFERROR(AVERAGEIFS(data[KR/KM],data[DATO],G52,data[AKTIVITET],$J$8),NA())","v":{"$error":"#N/A"}}]
[{"$nulls":5},44,"2012-06-13",{"$f":"SUMIFS(data[KM],data[DATO],G53,data[AKTIVITET],$H$8)","v":0},{"$f":"IFERROR(AVERAGEIFS(data[MPG],data[DATO],G53,data[AKTIVITET],$I$8),NA())","v":{"$error":"#N/A"}},{"$f":"IFERROR(AVERAGEIFS(data[KR/KM],data[DATO],G53,data[AKTIVITET],$J$8),NA())","v":{"$error":"#N/A"}}]
[{"$nulls":5},45,"2012-06-14",{"$f":"SUMIFS(data[KM],data[DATO],G54,data[AKTIVITET],$H$8)","v":0},{"$f":"IFERROR(AVERAGEIFS(data[MPG],data[DATO],G54,data[AKTIVITET],$I$8),NA())","v":{"$error":"#N/A"}},{"$f":"IFERROR(AVERAGEIFS(data[KR/KM],data[DATO],G54,data[AKTIVITET],$J$8),NA())","v":{"$error":"#N/A"}}]
[{"$nulls":5},46,"2012-06-15",{"$f":"SUMIFS(data[KM],data[DATO],G55,data[AKTIVITET],$H$8)","v":0},{"$f":"IFERROR(AVERAGEIFS(data[MPG],data[DATO],G55,data[AKTIVITET],$I$8),NA())","v":{"$error":"#N/A"}},{"$f":"IFERROR(AVERAGEIFS(data[KR/KM],data[DATO],G55,data[AKTIVITET],$J$8),NA())","v":{"$error":"#N/A"}}]
[{"$nulls":5},47,"2012-06-16",{"$f":"SUMIFS(data[KM],data[DATO],G56,data[AKTIVITET],$H$8)","v":0},{"$f":"IFERROR(AVERAGEIFS(data[MPG],data[DATO],G56,data[AKTIVITET],$I$8),NA())","v":{"$error":"#N/A"}},{"$f":"IFERROR(AVERAGEIFS(data[KR/KM],data[DATO],G56,data[AKTIVITET],$J$8),NA())","v":{"$error":"#N/A"}}]
[{"$nulls":5},48,"2012-06-17",{"$f":"SUMIFS(data[KM],data[DATO],G57,data[AKTIVITET],$H$8)","v":0},{"$f":"IFERROR(AVERAGEIFS(data[MPG],data[DATO],G57,data[AKTIVITET],$I$8),NA())","v":{"$error":"#N/A"}},{"$f":"IFERROR(AVERAGEIFS(data[KR/KM],data[DATO],G57,data[AKTIVITET],$J$8),NA())","v":{"$error":"#N/A"}}]
[{"$nulls":5},49,"2012-06-18",{"$f":"SUMIFS(data[KM],data[DATO],G58,data[AKTIVITET],$H$8)","v":0},{"$f":"IFERROR(AVERAGEIFS(data[MPG],data[DATO],G58,data[AKTIVITET],$I$8),NA())","v":{"$error":"#N/A"}},{"$f":"IFERROR(AVERAGEIFS(data[KR/KM],data[DATO],G58,data[AKTIVITET],$J$8),NA())","v":{"$error":"#N/A"}}]
[{"$nulls":5},50,"2012-06-19",{"$f":"SUMIFS(data[KM],data[DATO],G59,data[AKTIVITET],$H$8)","v":0},{"$f":"IFERROR(AVERAGEIFS(data[MPG],data[DATO],G59,data[AKTIVITET],$I$8),NA())","v":{"$error":"#N/A"}},{"$f":"IFERROR(AVERAGEIFS(data[KR/KM],data[DATO],G59,data[AKTIVITET],$J$8),NA())","v":{"$error":"#N/A"}}]
[{"$nulls":5},51,"2012-06-20",{"$f":"SUMIFS(data[KM],data[DATO],G60,data[AKTIVITET],$H$8)","v":0},{"$f":"IFERROR(AVERAGEIFS(data[MPG],data[DATO],G60,data[AKTIVITET],$I$8),NA())","v":{"$error":"#N/A"}},{"$f":"IFERROR(AVERAGEIFS(data[KR/KM],data[DATO],G60,data[AKTIVITET],$J$8),NA())","v":{"$error":"#N/A"}}]
[{"$nulls":5},52,"2012-06-21",{"$f":"SUMIFS(data[KM],data[DATO],G61,data[AKTIVITET],$H$8)","v":0},{"$f":"IFERROR(AVERAGEIFS(data[MPG],data[DATO],G61,data[AKTIVITET],$I$8),NA())","v":{"$error":"#N/A"}},{"$f":"IFERROR(AVERAGEIFS(data[KR/KM],data[DATO],G61,data[AKTIVITET],$J$8),NA())","v":{"$error":"#N/A"}}]
[{"$nulls":5},53,"2012-06-22",{"$f":"SUMIFS(data[KM],data[DATO],G62,data[AKTIVITET],$H$8)","v":0},{"$f":"IFERROR(AVERAGEIFS(data[MPG],data[DATO],G62,data[AKTIVITET],$I$8),NA())","v":{"$error":"#N/A"}},{"$f":"IFERROR(AVERAGEIFS(data[KR/KM],data[DATO],G62,data[AKTIVITET],$J$8),NA())","v":{"$error":"#N/A"}}]
[{"$nulls":5},54,"2012-06-23",{"$f":"SUMIFS(data[KM],data[DATO],G63,data[AKTIVITET],$H$8)","v":0},{"$f":"IFERROR(AVERAGEIFS(data[MPG],data[DATO],G63,data[AKTIVITET],$I$8),NA())","v":{"$error":"#N/A"}},{"$f":"IFERROR(AVERAGEIFS(data[KR/KM],data[DATO],G63,data[AKTIVITET],$J$8),NA())","v":{"$error":"#N/A"}}]
[{"$nulls":5},55,"2012-06-24",{"$f":"SUMIFS(data[KM],data[DATO],G64,data[AKTIVITET],$H$8)","v":0},{"$f":"IFERROR(AVERAGEIFS(data[MPG],data[DATO],G64,data[AKTIVITET],$I$8),NA())","v":{"$error":"#N/A"}},{"$f":"IFERROR(AVERAGEIFS(data[KR/KM],data[DATO],G64,data[AKTIVITET],$J$8),NA())","v":{"$error":"#N/A"}}]
[{"$nulls":5},56,"2012-06-25",{"$f":"SUMIFS(data[KM],data[DATO],G65,data[AKTIVITET],$H$8)","v":0},{"$f":"IFERROR(AVERAGEIFS(data[MPG],data[DATO],G65,data[AKTIVITET],$I$8),NA())","v":{"$error":"#N/A"}},{"$f":"IFERROR(AVERAGEIFS(data[KR/KM],data[DATO],G65,data[AKTIVITET],$J$8),NA())","v":{"$error":"#N/A"}}]
[{"$nulls":5},57,"2012-06-26",{"$f":"SUMIFS(data[KM],data[DATO],G66,data[AKTIVITET],$H$8)","v":0},{"$f":"IFERROR(AVERAGEIFS(data[MPG],data[DATO],G66,data[AKTIVITET],$I$8),NA())","v":{"$error":"#N/A"}},{"$f":"IFERROR(AVERAGEIFS(data[KR/KM],data[DATO],G66,data[AKTIVITET],$J$8),NA())","v":{"$error":"#N/A"}}]
[{"$nulls":5},58,"2012-06-27",{"$f":"SUMIFS(data[KM],data[DATO],G67,data[AKTIVITET],$H$8)","v":0},{"$f":"IFERROR(AVERAGEIFS(data[MPG],data[DATO],G67,data[AKTIVITET],$I$8),NA())","v":{"$error":"#N/A"}},{"$f":"IFERROR(AVERAGEIFS(data[KR/KM],data[DATO],G67,data[AKTIVITET],$J$8),NA())","v":{"$error":"#N/A"}}]
[{"$nulls":5},59,"2012-06-28",{"$f":"SUMIFS(data[KM],data[DATO],G68,data[AKTIVITET],$H$8)","v":0},{"$f":"IFERROR(AVERAGEIFS(data[MPG],data[DATO],G68,data[AKTIVITET],$I$8),NA())","v":{"$error":"#N/A"}},{"$f":"IFERROR(AVERAGEIFS(data[KR/KM],data[DATO],G68,data[AKTIVITET],$J$8),NA())","v":{"$error":"#N/A"}}]
[{"$nulls":5},60,"2012-06-29",{"$f":"SUMIFS(data[KM],data[DATO],G69,data[AKTIVITET],$H$8)","v":0},{"$f":"IFERROR(AVERAGEIFS(data[MPG],data[DATO],G69,data[AKTIVITET],$I$8),NA())","v":{"$error":"#N/A"}},{"$f":"IFERROR(AVERAGEIFS(data[KR/KM],data[DATO],G69,data[AKTIVITET],$J$8),NA())","v":{"$error":"#N/A"}}]